bitfinex/quotes_ETHUSD_20240925
["timestamp","ask_amount","ask_price","bid_price","bid_amount"]
[1727274377926,3.91133,2633.5,2632.9,3.79801]
[1727274378092,4.58153271,2633.5,2632.8,3.7981]
[1727274378292,3.79759,2633.3,2632.8,3.7981]
[1727274378494,3.79759,2633.3,2632.5,7.4]
[1727274378495,3.79823,2632.8,2632.5,7.4]
[1727274378741,0.1141,2632.7,2632.2,3.79901]
[1727274378940,3.79861,2632.6,2632.1,3.79924]
[1727274379239,0.391271,2632.6,2631.9,4.62173]
[1727274379437,0.391271,2632.6,2631.9,3.79944]
[1727274379640,3.79875,2632.5,2631.7,0.8222]
[1727274379806,4.189801,2632.6,2632.0,3.79928]
[1727274380006,4.189801,2632.6,2632.1,3.79922]
[1727274380253,3.79868,2632.5,2632.0,3.79928]
[1727274380558,0.1141,2632.4,2631.7,0.8222]
[1727274380761,3.79904,2632.3,2631.7,3.7998]
[1727274381059,3.79904,2632.3,2631.6,3.79988]
[1727274381356,4.68977442,2632.3,2631.5,0.8222]
[1727274381558,3.79926,2632.1,2631.5,4.62226]
[1727274381762,3.79926,2632.1,2631.5,3.80002]
[1727274381963,3.79991,2631.7,2631.3,0.038029]
[1727274382119,7.59983,2631.7,2631.3,0.038029]
[1727274382317,3.79991,2631.7,2631.3,0.038029]
[1727274383053,3.79998,2631.6,2631.3,0.038029]
[1727274383267,7.59984,2631.7,2631.3,0.038029]
[1727274383571,3.91421,2631.5,2631.3,0.038029]
[1727274383853,3.91435,2631.4,2631.3,0.038029]
[1727274384019,6.91435,2631.4,2631.3,0.038029]
[1727274384215,8.10983417,2631.4,2631.3,0.038029]
[1727274384465,6.91435,2631.4,2631.3,0.038029]
[1727274384627,8.10534442,2631.4,2631.3,0.038029]
[1727274386419,9.10238835,2631.4,2631.3,0.038029]
[1727274386646,9.10238835,2631.4,2630.6,0.038029]
[1727274386647,6.80126,2630.7,2630.6,0.038029]
[1727274386852,10.81264726,2630.7,2630.6,0.038029]
[1727274387070,13.66182442,2630.7,2630.6,0.038029]
[1727274387366,13.66182442,2630.7,2629.8,0.038029]
[1727274387367,6.80242,2629.9,2629.8,0.038029]
[1727274387869,6.91652,2629.9,2629.8,0.038029]
[1727274388074,7.46652,2629.9,2629.8,0.038029]
[1727274388375,7.46768,2629.1,2629.0,0.038029]
[1727274388578,3.80474,2628.3,2627.4,0.038029]
[1727274388781,6.80474,2628.3,2627.4,0.038029]
[1727274389078,8.76180873,2628.3,2627.4,0.038029]
[1727274389532,8.28790873,2628.3,2627.4,0.038029]
[1727274390038,8.28790873,2628.3,2627.5,0.0606701]
[1727274390039,3.80539,2627.9,2627.5,0.0606701]
[1727274390247,3.80529,2628.0,2627.5,0.0606701]
[1727274390538,0.03811787,2627.8,2627.5,0.0606701]
[1727274390867,3.80533,2627.9,2627.5,0.0606701]
[1727274391380,3.80504,2628.1,2627.5,0.0606701]
[1727274391381,0.0761,2627.7,2627.5,0.0606701]
[1727274391681,6.84194768,2627.6,2627.5,0.0606701]
[1727274394133,3.84194768,2627.6,2627.5,0.0606701]
[1727274394359,6.84194768,2627.6,2627.5,0.0606701]
[1727274394570,0.03619768,2627.6,2627.5,0.0606701]
[1727274394955,3.03619768,2627.6,2627.5,0.0606701]
[1727274395456,0.03619768,2627.6,2627.5,0.0606701]
[1727274395834,3.88099,2628.2,2627.5,0.0606701]
[1727274396178,0.03608261,2627.6,2627.5,3.8664501]
[1727274396471,0.2,2628.4,2627.7,3.80554]
[1727274396676,4.00459,2628.4,2627.7,3.80554]
[1727274396855,3.80507,2628.1,2627.5,0.0606701]
[1727274397177,3.805,2628.2,2627.5,3.8665401]
[1727274397474,3.8412571,2628.1,2627.5,0.0606701]
[1727274397631,3.80523,2628.0,2627.5,0.0606701]
[1727274397854,0.0362271,2628.1,2627.5,3.8664301]
[1727274398053,0.0362197,2627.9,2627.6,3.80572]
[1727274398253,0.0362217,2628.0,2627.5,3.8664301]
[1727274398488,3.38412271,2628.1,2627.5,3.8664301]
[1727274398489,0.03621429,2627.8,2627.5,3.8664301]
[1727274398695,0.03621629,2627.9,2627.8,3.80546]
[1727274398883,3.0,2628.3,2627.8,3.80546]
[1727274399190,3.88043,2628.6,2627.7,3.80558]
[1727274399191,0.60329494,2628.2,2627.9,3.80531]
[1727274399391,0.0761,2628.6,2627.9,3.80531]
[1727274400000,14.26,2629.5,2627.7,3.80556]
[1727274400001,11.26397,2628.9,2628.1,3.80493]
[1727274400177,4.58979376,2628.8,2628.1,3.80493]
[1727274400692,0.78574376,2628.8,2628.1,3.80493]
[1727274400898,0.03625152,2628.7,2628.1,3.80493]
[1727274401055,1.62525005,2628.7,2628.1,3.80493]
[1727274401686,1.62525005,2628.7,2628.1,7.60986]
[1727274402065,4.62525005,2628.7,2628.1,7.60986]
[1727274402809,1.62525005,2628.7,2628.1,3.80497]
[1727274403008,1.62525005,2628.7,2628.2,3.80487]
[1727274403316,0.92911838,2628.6,2628.1,3.80497]
[1727274403611,0.0365189,2628.5,2628.1,7.60989]
[1727274403820,0.0365189,2628.5,2627.6,3.80571]
[1727274403821,0.0365189,2628.5,2627.6,0.7825]
[1727274404117,0.0365189,2628.5,2627.5,7.4606701]
[1727274404318,3.80525,2628.0,2627.5,7.4606701]
[1727274404473,3.80497,2628.2,2627.5,7.4606701]
[1727274404474,3.0,2628.1,2627.5,3.8664701]
[1727274404814,0.03636156,2628.0,2627.7,3.80552]
[1727274404986,0.30761,2628.2,2627.7,3.80552]
[1727274405184,3.03639332,2628.1,2627.7,3.80552]
[1727274405400,0.03639332,2628.1,2627.9,3.80521]
[1727274405784,7.46,2628.5,2628.0,3.80517]
[1727274405972,7.46,2628.5,2627.9,3.80521]
[1727274406172,0.03618426,2628.4,2628.1,3.80502]
[1727274406528,0.03618426,2628.4,2628.0,4.62145]
[1727274406718,0.03618426,2628.4,2628.0,0.8163]
[1727274406870,0.76450843,2628.4,2628.0,0.8163]
[1727274407070,0.03617994,2628.3,2628.0,4.62145]
[1727274407518,3.80438,2628.6,2628.0,4.62145]
[1727274407703,0.03610446,2628.2,2628.0,4.62145]
[1727274407910,7.60882,2628.6,2628.0,4.62145]
[1727274408097,0.388048,2628.5,2628.0,4.62145]
[1727274408286,0.42416356,2628.5,2628.0,4.62145]
[1727274409079,0.42416356,2628.5,2628.2,3.80479]
[1727274409285,0.03611556,2628.5,2628.2,3.80479]
[1727274409582,0.78574376,2628.8,2628.0,0.8163]
[1727274409787,0.03611686,2628.7,2628.4,3.80455]
[1727274410031,0.78574376,2628.8,2628.4,3.8045]
[1727274410201,0.03609208,2628.7,2628.4,3.8045]
[1727274410461,0.78574376,2628.8,2628.4,3.80449]
[1727274410678,0.03607465,2628.6,2628.4,3.80449]
[1727274410978,3.80394,2628.9,2628.4,3.80449]
[1727274411186,3.80405,2628.8,2628.2,3.80479]
[1727274411346,0.380405,2628.7,2628.2,3.80479]
[1727274411546,0.0360875,2628.7,2628.6,3.8043]
[1727274411966,3.80354,2629.2,2628.6,3.8043]
[1727274412280,0.0761,2629.3,2628.7,3.80406]
[1727274412482,0.0761,2629.3,2628.9,3.80377]
[1727274412689,15.14198,2629.6,2629.0,3.80372]
[1727274412886,1.55394227,2629.5,2628.9,3.80377]
[1727274413091,1.55394227,2629.5,2629.1,3.8035]
[1727274413258,0.0761,2629.6,2628.6,0.7534]
[1727274413469,3.8033,2629.3,2628.7,3.80406]
[1727274413643,3.80362,2629.1,2628.6,0.7534]
[1727274413844,3.80362,2629.1,2628.5,3.80435]
[1727274413845,3.80374,2629.0,2628.5,3.80435]
[1727274414260,7.60729,2629.1,2628.5,3.80435]
[1727274414455,3.80434,2628.6,2628.3,0.7883]
[1727274414760,3.80417,2628.7,2628.2,3.80488]
[1727274414976,3.80432,2628.6,2628.1,3.8049]
[1727274415181,0.760841,2628.6,2628.2,3.80482]
[1727274415354,3.80527,2628.0,2627.5,0.0606701]
[1727274415550,3.8056,2627.8,2627.5,0.0606701]
[1727274415859,3.49321775,2627.9,2627.5,0.0606701]
[1727274416061,3.41711775,2627.9,2627.5,0.0606701]
[1727274416280,0.41711775,2627.9,2627.5,0.0606701]
[1727274416660,0.41711775,2627.9,2627.5,3.8665601]
[1727274416859,3.80547,2627.8,2627.5,0.0606701]
[1727274417059,0.42225878,2627.7,2627.5,0.0606701]
[1727274417453,3.80575,2627.6,2627.5,0.0606701]
[1727274419488,3.84233227,2627.6,2627.5,0.0606701]
[1727274420292,6.91843227,2627.6,2627.5,0.0606701]
[1727274420853,7.46843227,2627.6,2627.5,0.0606701]
[1727274421051,9.3647601,2627.6,2627.5,0.0606701]
[1727274421872,8.8147601,2627.6,2627.5,0.0606701]
[1727274423288,8.7386601,2627.6,2627.5,0.0606701]
[1727274423496,5.7386601,2627.6,2627.5,0.0606701]
[1727274423803,0.03658227,2627.6,2627.5,0.0606701]
[1727274424580,3.8055,2627.8,2627.5,0.0606701]
[1727274424797,3.80568,2627.7,2627.5,0.0606701]
[1727274425004,3.84167665,2627.7,2627.5,0.0606701]
[1727274425336,4.18991767,2627.6,2627.5,0.0606701]
[1727274425710,7.30199619,2627.6,2627.5,0.0606701]
[1727274426975,7.22589619,2627.6,2627.5,0.0606701]
[1727274427713,7.30199619,2627.6,2627.5,0.0606701]
[1727274427922,7.85199619,2627.6,2627.5,0.0606701]
[1727274429930,8.24961369,2627.6,2627.5,0.0606701]
[1727274430498,8.85015774,2627.6,2627.5,0.0606701]
[1727274430719,8.24961369,2627.6,2627.5,0.0606701]
[1727274432421,7.69961369,2627.6,2627.5,0.0606701]
[1727274432917,8.24961369,2627.6,2627.5,0.0606701]
[1727274433827,8.85015774,2627.6,2627.5,0.0606701]
[1727274434034,8.24961369,2627.6,2627.5,0.0606701]
[1727274435417,7.69961369,2627.6,2627.5,0.0606701]
[1727274436141,7.30199619,2627.6,2627.5,0.0606701]
[1727274437643,7.85199619,2627.6,2627.5,0.0606701]
[1727274437826,8.45254024,2627.6,2627.5,0.0606701]
[1727274438009,10.03637444,2627.6,2627.5,0.0606701]
[1727274438407,8.24969423,2627.6,2627.5,0.0606701]
[1727274439401,9.43583039,2627.6,2627.5,0.0606701]
[1727274439638,8.24969423,2627.6,2627.5,0.0606701]
[1727274439809,9.43583039,2627.6,2627.5,0.0606701]
[1727274440002,8.24969423,2627.6,2627.5,0.0606701]
[1727274440437,9.43583039,2627.6,2627.5,0.0606701]
[1727274441445,7.69969423,2627.6,2627.5,0.0606701]
[1727274441600,7.22589619,2627.6,2627.5,0.0606701]
[1727274441938,4.22589619,2627.6,2627.5,0.0606701]
[1727274442145,3.84172852,2627.6,2627.5,0.0606701]
[1727274442441,0.03597852,2627.6,2627.5,0.0606701]
[1727274442623,0.03597852,2627.6,2627.5,0.8342701]
[1727274442839,3.84172852,2627.6,2627.5,0.8342701]
[1727274443154,0.03597852,2627.6,2627.5,0.0606701]
[1727274443519,0.03597852,2627.6,2627.5,0.8878701]
[1727274444047,3.8054,2627.9,2627.5,0.8878701]
[1727274444250,3.80539,2627.9,2627.5,0.8878701]
[1727274444407,3.80511,2628.1,2627.5,4.6937601]
[1727274444609,3.80481,2628.3,2627.6,3.80572]
[1727274445349,3.80474,2628.3,2627.6,3.80572]
[1727274445503,3.80521,2628.0,2627.5,5.54374011]
[1727274445703,3.80521,2628.0,2627.5,8.4995601]
[1727274445904,0.03530242,2627.9,2627.5,8.4995601]
[1727274446236,3.80493,2628.2,2627.5,4.6937201]
[1727274446445,4.185419,2628.2,2627.5,4.6937201]
[1727274446644,3.80529,2628.0,2627.5,4.6937201]
[1727274446945,0.03544593,2627.9,2627.8,0.8144]
[1727274447157,0.03544593,2627.9,2627.8,4.648017]
[1727274447340,5.38556488,2628.8,2627.8,4.648017]
[1727274447341,3.80462,2628.4,2627.9,0.7813]
[1727274447809,7.60931,2628.4,2627.9,0.7813]
[1727274448030,7.60931,2628.4,2627.9,4.58653]
[1727274448031,0.03428199,2628.3,2627.9,4.58653]
[1727274448269,0.03428199,2628.3,2627.9,0.7813]
[1727274448768,0.03428199,2628.3,2627.9,4.5866]
[1727274448970,0.03428199,2628.3,2627.9,0.7813]
[1727274449270,3.83903199,2628.3,2627.9,0.7813]
[1727274449642,0.03428199,2628.3,2627.9,0.7813]
[1727274449869,3.80489,2628.2,2627.9,0.7813]
[1727274450076,0.7643792,2628.2,2627.9,0.7813]
[1727274450232,3.03428199,2628.3,2627.6,0.8037]
[1727274450435,7.61115,2627.8,2627.6,0.8037]
[1727274450771,0.03447572,2627.7,2627.6,0.8037]
[1727274451132,3.80555,2627.8,2627.6,0.8037]
[1727274451442,0.03447572,2627.7,2627.6,0.8037]
[1727274451649,3.80496,2628.2,2627.6,4.60945]
[1727274451849,0.03447365,2628.1,2627.6,0.8157138]
[1727274452066,1.18613616,2628.8,2628.2,3.80487]
[1727274452239,1.18613616,2628.9,2628.2,3.80487]
[1727274452437,3.80409,2628.8,2628.3,4.57271]
[1727274452735,4.98990616,2629.0,2628.3,4.57271]
[1727274452736,3.80377,2629.0,2628.3,0.8006909]
[1727274452974,3.80388,2628.9,2628.4,3.80445]
[1727274453174,0.0344251,2628.9,2628.5,4.56798]
[1727274453373,0.0344251,2628.9,2628.5,0.7636]
[1727274453684,7.46,2629.2,2628.3,3.50986872]
[1727274453685,3.80359,2629.1,2628.7,0.8073]
[1727274453854,0.03442751,2628.8,2628.7,0.8073]
[1727274454041,3.80373,2629.0,2628.7,0.8073]
[1727274454237,0.03464121,2628.9,2628.7,0.8073]
[1727274454470,11.26355,2629.2,2628.7,0.8073]
[1727274454686,3.0,2629.1,2628.7,0.8073]
[1727274455187,0.03465785,2629.0,2628.7,8.41546]
[1727274455421,0.03465785,2629.0,2628.7,0.8073]
[1727274455537,7.60713,2629.2,2628.7,0.8073]
[1727274455737,0.03465265,2628.9,2628.7,0.8073]
[1727274455978,3.80367,2629.1,2628.7,0.8073]
[1727274456180,0.03464895,2628.8,2628.7,0.8073]
[1727274456390,4.20034692,2629.6,2628.7,4.61135]
[1727274456391,3.80318,2629.4,2628.7,4.61135]
[1727274456549,0.03464895,2628.8,2628.7,4.61135]
[1727274456757,3.80318,2629.4,2628.8,3.804]
[1727274457170,3.80318,2629.4,2628.7,4.61144]
[1727274457372,3.80318,2629.4,2628.7,0.8073]
[1727274457373,3.80345,2629.2,2628.7,0.8073]
[1727274457553,3.80364,2629.1,2628.7,0.8073]
[1727274457940,3.80365,2629.1,2628.7,0.8073]
[1727274460447,0.03578494,2629.0,2628.7,0.8073]
[1727274460975,0.03578124,2628.9,2628.7,0.8073]
[1727274461148,0.03578124,2628.9,2628.8,4.58991]
[1727274461356,0.03578124,2628.9,2628.8,0.7859]
[1727274461549,3.80367,2629.1,2628.8,0.7859]
[1727274461750,0.03579808,2628.9,2628.8,0.7859]
[1727274461977,3.80387,2628.9,2628.8,0.7859]
[1727274462175,0.03579917,2628.9,2628.4,0.7538]
[1727274462582,3.80408,2628.8,2628.4,0.7538]
[1727274462786,3.83966917,2628.9,2628.4,4.55839]
[1727274463039,0.03580694,2628.7,2628.6,3.80426]
[1727274463334,3.80366,2629.1,2628.6,4.60536]
[1727274463496,3.80337,2629.3,2628.8,3.80391]
[1727274463694,0.0358193,2629.0,2628.9,4.62747]
[1727274463926,3.0,2629.4,2629.0,3.80371]
[1727274464231,5.06467616,2629.9,2628.9,0.8237]
[1727274464232,3.80266,2629.8,2629.3,0.8237]
[1727274464442,11.26237,2630.0,2629.3,4.6269]
[1727274464731,11.26237,2630.0,2629.6,0.8269]
[1727274464732,2.30473647,2630.0,2629.6,0.8269]
[1727274464941,7.46,2630.4,2629.7,4.62949]
[1727274465090,11.26181,2630.4,2629.8,7.27966782]
[1727274465289,11.26181,2630.4,2629.8,7.27963782]
[1727274465290,0.78574775,2630.3,2629.8,7.27963782]
[1727274465617,0.78574775,2630.3,2629.7,4.62949]
[1727274465618,3.80201,2630.2,2629.7,4.62949]
[1727274466036,5.00678577,2630.2,2629.7,0.8269]
[1727274466204,3.80238,2630.0,2629.7,0.8269]
[1727274466409,3.80257,2629.8,2629.7,0.8269]
[1727274466607,3.80244,2629.9,2629.7,0.8269]
[1727274466803,0.57924035,2630.1,2629.7,0.8269]
[1727274467006,4.38150035,2630.1,2629.7,0.8269]
[1727274467609,0.03484968,2630.0,2629.7,0.8269]
[1727274468526,3.83719968,2630.0,2629.7,0.8269]
[1727274469302,3.80249,2629.9,2629.7,0.8269]
[1727274469516,0.03511159,2629.9,2629.7,0.8269]
[1727274469842,3.83761159,2629.9,2629.7,0.8269]
[1727274470195,0.03511159,2629.9,2629.7,0.8269]
[1727274470953,0.03511159,2629.9,2629.3,0.8217]
[1727274471117,3.80279,2629.7,2629.3,0.8217]
[1727274471317,4.18658016,2629.7,2629.3,0.8217]
[1727274471616,0.03510049,2629.6,2629.3,0.8217]
[1727274472045,0.03510049,2629.6,2629.3,4.62496]
[1727274472260,0.03510049,2629.6,2629.4,3.80314]
[1727274472553,3.80271,2629.8,2629.3,0.8217]
[1727274472760,0.03509571,2629.5,2629.3,4.62498]
[1727274472916,3.80234,2630.0,2629.3,4.62498]
[1727274473114,8.14747934,2630.0,2629.5,3.803]
[1727274473459,0.03510941,2629.9,2629.5,3.803]
[1727274473760,3.83755941,2629.9,2629.5,3.803]
[1727274474121,3.83755941,2629.9,2629.4,3.80313]
[1727274474979,0.03510941,2629.9,2629.5,3.80298]
[1727274475273,0.03510941,2629.9,2629.7,0.8086]
[1727274475443,3.8023,2630.0,2629.7,0.8086]
[1727274475762,0.03510497,2629.9,2629.7,0.8086]
[1727274477129,3.80257,2629.8,2629.4,4.58834]
[1727274477334,3.80257,2629.8,2629.4,8.39141]
[1727274477335,0.7639975,2629.8,2629.4,8.39141]
[1727274477553,3.83753497,2629.9,2629.4,8.3914]
[1727274477875,0.03509658,2629.7,2629.5,3.80287]
[1727274478113,0.03510028,2629.8,2629.5,3.80287]
[1727274478373,0.03509288,2629.6,2629.4,4.58834]
[1727274478674,3.80282,2629.7,2629.4,0.7853]
[1727274478833,3.8028,2629.7,2629.4,0.7853]
[1727274479033,0.03503222,2629.6,2629.4,0.7853]
[1727274479649,7.64085222,2629.6,2629.4,0.7853]
[1727274479978,4.60197744,2629.6,2629.1,8.1981]
[1727274480361,4.60197744,2629.6,2629.1,15.80508]
[1727274480676,3.803,2629.5,2629.1,4.60157]
[1727274481038,0.03535557,2629.4,2629.1,4.60157]
[1727274481593,0.03535557,2629.4,2629.1,0.7981]
[1727274481879,3.80316,2629.4,2629.1,0.7981]
[1727274482091,0.03539304,2629.3,2629.1,0.7981]
[1727274482590,0.03539304,2629.3,2628.7,6.80405]
[1727274482591,0.87566034,2629.3,2628.7,0.7659]
[1727274482743,3.80395,2628.9,2628.7,0.7659]
[1727274483181,3.80369,2629.1,2628.7,0.7659]
[1727274483382,0.03525531,2628.8,2628.7,4.56996]
[1727274483697,7.27947782,2630.0,2629.1,0.7713]
[1727274483698,7.46,2629.8,2629.1,0.7713]
[1727274484024,0.0761,2630.0,2629.1,4.57474]
[1727274484157,0.0761,2630.0,2628.6,10.87717782]
[1727274484158,0.54805376,2630.0,2629.5,0.8176]
[1727274484359,3.80235,2630.0,2629.5,4.62059]
[1727274484684,3.80243,2629.9,2629.5,4.62059]
[1727274484878,0.760468,2629.9,2629.5,4.62059]
[1727274485182,3.8023,2630.0,2629.5,4.6205]
[1727274485382,7.46,2630.5,2629.5,0.8176]
[1727274485631,3.80199,2630.2,2629.6,3.80272]
[1727274485794,0.03521755,2629.9,2629.7,3.80271]
[1727274486087,6.8022,2630.1,2629.5,4.62047]
[1727274486242,7.862619,2630.1,2629.5,4.62047]
[1727274486449,7.862619,2630.1,2629.6,3.80282]
[1727274486681,3.80186,2630.3,2629.6,3.80276]
[1727274486682,3.80194,2630.3,2629.6,3.80276]
[1727274486857,3.80222,2630.1,2629.6,3.80276]
[1727274487053,3.80229,2630.0,2629.5,4.6206]
[1727274487299,3.80229,2630.0,2629.6,3.80285]
[1727274487473,3.80209,2630.2,2629.7,3.80271]
[1727274487702,7.60392,2630.3,2629.8,3.80248]
[1727274488046,3.80195,2630.3,2629.8,3.80248]
[1727274488282,5.308342,2630.3,2629.8,3.80248]
[1727274488864,3.80237,2630.0,2629.5,0.8176]
[1727274489395,3.83767593,2629.9,2629.5,0.8176]
[1727274489605,3.80259,2629.8,2629.5,0.8176]
[1727274489759,3.8028,2629.7,2629.5,0.8176]
[1727274489960,3.83821915,2629.7,2629.5,0.8176]
[1727274490160,3.80285,2629.6,2629.1,0.8074]
[1727274490492,3.80323,2629.4,2629.1,0.8074]
[1727274491109,0.03544443,2629.3,2629.1,0.8074]
[1727274491757,3.80306,2629.5,2629.1,0.8074]
[1727274491966,0.03528253,2629.2,2629.1,0.8074]
[1727274492461,3.80301,2629.5,2629.1,0.8074]
[1727274492662,0.03533109,2629.4,2629.2,3.80342]
[1727274492997,0.38382692,2629.6,2629.2,3.80342]
[1727274493239,0.03532739,2629.3,2629.2,3.80342]
[1727274493443,3.80283,2629.7,2629.2,3.80342]
[1727274493647,0.03528623,2629.3,2629.2,3.80342]
[1727274494144,3.80273,2629.7,2629.2,3.80342]
[1727274494301,3.80267,2629.8,2629.3,3.80327]
[1727274494729,0.03529994,2629.7,2629.3,3.80327]
[1727274495037,0.03529994,2629.7,2629.3,7.60646]
[1727274495222,3.80267,2629.8,2629.2,3.80343]
[1727274495432,1.26223616,2630.0,2629.1,4.6109]
[1727274495433,3.83823515,2629.6,2629.1,4.6109]
[1727274495600,3.80309,2629.5,2629.1,0.8074]
[1727274495809,3.83719936,2629.5,2629.1,0.8074]
[1727274496024,3.80316,2629.4,2629.1,0.8074]
[1727274496223,4.56718094,2629.4,2629.1,0.8074]
[1727274496446,0.03410196,2629.3,2629.1,0.8074]
[1727274497438,3.83740196,2629.3,2629.1,0.8074]
[1727274498118,0.03410196,2629.3,2628.7,0.8235]
[1727274498334,3.80361,2629.1,2628.6,7.4]
[1727274498561,8.79345616,2629.1,2628.6,11.2043]
[1727274498758,1.22025399,2629.2,2628.6,11.2043]
[1727274499063,0.03414943,2629.0,2628.9,4.63277]
[1727274499233,0.03403607,2629.1,2629.0,3.80372]
[1727274499423,1.18613616,2629.3,2629.0,3.80372]
[1727274500135,0.03403977,2629.2,2629.0,3.80372]
[1727274500356,0.03403977,2629.2,2629.1,3.80358]
[1727274500521,1.18613616,2629.3,2629.1,3.80358]
[1727274500724,0.03397393,2629.2,2629.1,3.80358]
[1727274501149,1.18613616,2629.4,2629.2,3.80337]
[1727274501753,1.18613616,2629.4,2629.1,3.80358]
[1727274502027,1.18613616,2629.4,2628.8,7.2771685]
[1727274502028,1.18613616,2629.4,2629.3,4.59849]
[1727274502925,1.18613616,2629.5,2629.4,3.80314]
[1727274503126,1.18613616,2629.8,2629.7,0.8207]
[1727274503334,1.18613616,2629.9,2629.7,4.62341]
[1727274503555,1.18613616,2629.9,2629.7,4.6234]
[1727274503794,1.18613616,2629.9,2629.7,0.8207]
[1727274503980,3.83681933,2629.8,2629.3,0.7526]
[1727274504282,1.19598485,2629.6,2629.3,0.7526]
[1727274504432,1.19598485,2629.5,2629.3,0.7526]
[1727274504644,1.2303479,2629.5,2629.3,0.7526]
[1727274504842,1.19598485,2629.4,2629.0,4.56511]
[1727274505051,1.19598485,2629.4,2629.0,8.36874]
[1727274505250,1.23030148,2629.3,2629.0,8.36874]
[1727274505452,0.03431663,2629.3,2629.0,0.7615]
[1727274505651,0.5698921,2629.3,2629.0,0.7615]
[1727274506138,1.19598485,2629.2,2629.0,0.7615]
[1727274506340,1.23030148,2629.3,2629.0,0.7615]
[1727274506534,5.38466488,2629.4,2629.0,0.7615]
[1727274506535,1.23022949,2629.2,2629.0,0.7615]
[1727274506759,0.03424464,2629.2,2629.0,0.7615]
[1727274506966,1.19598485,2629.3,2629.0,0.7615]
[1727274507779,0.03419099,2629.2,2629.0,0.7615]
[1727274508147,1.19598485,2629.3,2629.1,3.80358]
[1727274508385,1.19598485,2629.4,2629.1,3.80358]
[1727274508709,1.19598485,2629.3,2629.1,3.80358]
[1727274509013,1.19598485,2629.5,2629.3,3.80329]
[1727274509173,1.19598485,2629.5,2629.1,4.3937384]
[1727274509174,1.19598485,2629.7,2629.6,3.80285]
[1727274509373,1.19598485,2629.8,2629.7,3.80271]
[1727274509672,1.58151488,2629.9,2629.8,3.80257]
[1727274509673,1.19598485,2629.9,2629.8,3.80257]
[1727274510824,1.19598485,2629.9,2629.3,3.80325]
[1727274511101,1.19598485,2629.9,2629.2,0.8141]
[1727274511102,1.19684527,2629.8,2629.5,3.80293]
[1727274511311,1.19684527,2629.8,2629.7,0.8141]
[1727274512667,1.19684527,2629.8,2629.3,4.6156]
[1727274512982,1.19684527,2629.5,2629.1,8.41942]
[1727274513301,1.19684527,2629.5,2629.1,4.61586]
[1727274513464,4.99986527,2629.5,2629.1,4.61586]
[1727274513673,4.99986527,2629.5,2628.5,3.4731785]
[1727274513674,3.80343,2629.2,2628.8,0.7752]
[1727274513871,5.00027527,2629.2,2628.6,0.7752]
[1727274514075,5.00044527,2629.1,2628.7,3.80408]
[1727274514314,1.19684527,2629.1,2628.9,3.80386]
[1727274514603,1.19684527,2629.2,2628.9,3.80386]
[1727274514804,0.0343882,2629.0,2628.9,3.80386]
[1727274515007,1.19684527,2629.3,2629.1,3.80352]
[1727274515226,1.19684527,2629.4,2629.2,6.62543943]
[1727274515405,1.19684527,2629.4,2629.2,3.80343]
[1727274515583,1.19684527,2629.4,2629.1,3.80352]
[1727274515774,1.19684527,2629.4,2629.2,3.8033]
[1727274516415,1.19684527,2629.7,2629.4,4.56872]
[1727274516603,1.19684527,2629.7,2629.5,3.80292]
[1727274516783,1.58151488,2629.8,2629.4,7.39072943]
[1727274516784,1.19684527,2629.6,2629.4,4.56872]
[1727274516982,1.19684527,2629.6,2629.4,8.37176]
[1727274517376,1.19684527,2629.6,2629.4,4.56864]
[1727274518309,1.19684527,2629.6,2629.3,3.80328]
[1727274518310,0.03427863,2629.5,2629.3,3.80328]
[1727274518612,1.2311239,2629.5,2629.3,3.80328]
[1727274519373,3.80338,2629.3,2628.8,3.80394]
[1727274519601,3.80338,2629.3,2628.9,3.80379]
[1727274519602,1.19684527,2629.2,2628.9,3.80379]
[1727274519804,1.23115875,2629.2,2628.9,3.80379]
[1727274520170,1.23115875,2629.2,2628.8,3.80401]
[1727274520481,1.23115875,2629.2,2628.4,3.80455]
[1727274520482,5.00056527,2629.1,2628.5,3.80436]
[1727274520808,1.23111513,2629.0,2628.6,3.80419]
[1727274520969,1.23111513,2629.0,2628.8,6.62595943]
[1727274521165,0.03426986,2629.0,2628.8,6.62595943]
[1727274521394,0.03426986,2629.0,2628.9,3.80387]
[1727274521617,0.03426986,2629.0,2628.9,4.63627]
[1727274522115,1.19684527,2629.3,2629.0,3.80364]
[1727274522717,1.19684527,2629.3,2629.1,3.80351]
[1727274522870,1.19684527,2629.4,2629.1,3.80351]
[1727274523071,1.19684527,2629.4,2629.3,3.80329]
[1727274523483,1.19684527,2629.4,2629.2,6.62536943]
[1727274523720,1.19684527,2629.4,2629.3,3.80329]
[1727274524028,1.58151488,2629.6,2629.3,3.80329]
[1727274524029,1.19684527,2629.6,2629.4,3.80307]
[1727274524186,1.19684527,2629.5,2629.3,4.57199]
[1727274524588,1.19684527,2629.5,2629.3,4.5719]
[1727274525021,1.19684527,2629.5,2629.3,0.7687]
[1727274525321,6.06271089,2629.5,2629.0,4.6195]
[1727274525533,1.19705213,2629.3,2629.0,4.6195]
[1727274525826,1.58151488,2629.4,2629.0,4.6195]
[1727274525827,1.23123327,2629.4,2629.0,4.6195]
[1727274525994,0.03417374,2629.2,2629.0,4.6195]
[1727274526181,1.19705213,2629.4,2629.0,4.6195]
[1727274526381,1.19705213,2629.4,2629.0,8.42314]
[1727274526382,0.03417004,2629.1,2629.0,8.42314]
[1727274526592,1.19705213,2629.4,2629.0,8.42314]
[1727274526890,1.19705213,2629.4,2629.0,4.61944]
[1727274527104,1.19705213,2629.3,2629.0,0.8158]
[1727274527437,1.19705213,2629.2,2628.8,4.6106]
[1727274527601,1.19705213,2629.2,2628.9,3.80386]
[1727274527802,1.23126922,2629.1,2628.9,3.80386]
[1727274528006,1.23126922,2629.1,2628.8,4.6106]
[1727274528546,1.23126922,2629.1,2628.9,3.80386]
[1727274528837,0.03421709,2629.1,2628.9,4.645316]
[1727274528994,0.03421709,2629.1,2628.9,3.80385]
[1727274529799,0.03421709,2629.1,2629.0,3.80372]
[1727274530442,0.03421709,2629.1,2628.9,3.80379]
[1727274530770,0.03421709,2629.1,2629.0,6.62572943]